Cogmind - Beta 13 X1 @@@ ROGUE MODE // 2023.08.03 @ 14:39:42 Player: Luna Result: Destroyed by C-17 Slicer with Blade Saw Performance ------------- Evolutions (2) 1000 Regions Visited (3) 600 Robots Destroyed (19) 95 Value Destroyed (738) 738 Prototype IDs (0) 0 Alien Tech Used (0) 0 Bonus (0) 0 TOTAL SCORE: 2433 Bonus ------- None Cogmind --------- Core Integrity 0/550 Matter 153/300 Energy 100/100 System Corruption 2% Temperature Cool (0) Movement Core (50) Location -8/Materials Parts ------- > --- POWER (1) -------- (None) > --- PROPULSION (4) --- (None) > --- UTILITY (3) ------ Improved Signal Interpreter > --- WEAPON (3) ------- (None) > --- INVENTORY (5) ---- Armored Wheel Improved Heat Sink Ion Cannon Assault Rifle Proton Missile Launcher Peak State ------------ > --- POWER ------------ Light Angular Momentum Engine > --- PROPULSION ------- Light Treads Light Treads Light Treads Spiked Treads > --- UTILITY ---------- Large Storage Unit Launcher Guidance Computer Core Shielding > --- WEAPON ----------- Heavy Laser Barrage Gun Proton Missile Launcher > --- INVENTORY -------- Subdweller Power Source Light Treads Light Treads Improved Heat Sink Small Storage Unit High-capacity Storage Unit Light Armor Plating Medium Laser Subdweller Laser Assault Rifle Subdweller Machine Gun Battle Cannon Proton Missile Launcher [Rating: 29] Favorites ----------- Power Ion Engine Engine Ion Engine Propulsion Light Treads Treads Light Treads Leg Improved Aluminum Leg Wheel Compact Wheel Utility Large Storage Unit Storage Large Storage Unit Processor Targeting Computer Protection Light Armor Plating Weapon Assault Rifle Energy Gun Subdweller Laser Ballistic Gun Assault Rifle Ballistic Cannon Battle Cannon Launcher Proton Missile Launcher Build | -11 -10 -10 -8 ------- Run | Jun Mat Sub Mat Slots Evolved 4 | . . . 4 Power . | . . . . Propulsion 2 | . . . 2 Utility 1 | . . . 1 Weapon 1 | . . . 1 Parts Attached 44 | 6 8 10 20 Power 8 | 1 2 3 2 Engine 8 | 1 2 3 2 Core . | . . . . Reactor . | . . . . Propulsion 16 | 2 3 1 10 Treads 11 | . 2 1 8 Leg 1 | . . . 1 Wheel 4 | 2 1 . 1 Hover . | . . . . Flight . | . . . . Utility 9 | 1 2 2 4 Device . | . . . . Storage 3 | 1 1 . 1 Processor 3 | . 1 . 2 Hackware . | . . . . Protection 3 | . . 2 1 Artifact . | . . . . Weapon 11 | 2 1 4 4 Energy Gun 4 | . . 3 1 Energy Cannon . | . . . . Ballistic Gun 5 | 2 1 1 1 Ballistic Cannon 1 | . . . 1 Launcher 1 | . . . 1 Special Weapon . | . . . . Impact Weapon . | . . . . Slashing Weapon . | . . . . Piercing Weapon . | . . . . Special Melee Weapon . | . . . . Unidentified Prototypes . | . . . . Parts Lost 12 | . . 1 11 Power 1 | . . 1 . Propulsion 6 | . . . 6 Utility 2 | . . . 2 Weapon 3 | . . . 3 Highest Loss Streak 7 | . . 1 7 To Critical Strikes . | . . . . Average Slot Usage (%) 92 | . 95 100 63 Engine 12 | . 14 14 3 Treads 24 | . 21 28 25 Wheel 2 | . 6 . . Storage 12 | . 14 14 5 Processor 5 | . 10 . 6 Protection 6 | . . 14 6 Energy Gun 5 | . . 12 5 Ballistic Gun 19 | . 27 15 4 Naked Turns . | . . . . Heaviest Build 44 | 13 28 35 44 Greatest Support 80 | 26 40 40 80 Greatest Overweight (x) 1 | 1 1 . . Average Overweight (x) . | . . . . Largest Inventory Capacity 15 | 8 15 15 15 Average Capacity 12 | 6 11 15 10 Most Carried 15 | 6 15 15 14 Average Carried 11 | 3 9 14 9 Final Capacity 15 | 8 15 15 5 Final Carried 15 | 6 15 14 5 Class Distribution -------------------- 79% | Mutant 20% | Derelict-Mutant Dominant Class ---------------- Mutant | -10/Materials Mutant | -10/Subcaves Mutant | -8/Materials Resources | -11 -10 -10 -8 ----------- Run | Jun Mat Sub Mat Matter Collected 795 | 191 369 169 66 Remotely . | . . . . Salvage Created 855 | . 473 196 186 Parts 41 | . 25 6 10 Haulers Intercepted 1 | . 1 . . Recyclers Shooed 1 | . 1 . . Parts Field Recycled . | . . . . Retrieved Matter . | . . . . Parts Self-Destructed 4 | . . 4 . Prevented . | . . . . Kills | -11 -10 -10 -8 ------- Run | Jun Mat Sub Mat Combat Hostiles Destroyed 15 | . 8 4 3 Guns 15 | . 8 4 3 Classes Destroyed 6 | . 4 1 1 Worker 1 | . . . 1 Tunneler 1 | . 1 . . Hauler 1 | . 1 . . Recycler 1 | . 1 . . Grunt 11 | . 8 . 3 Subdweller 4 | . . 4 . Best Kill Streak 4 | . 4 2 3 Combat Bots Only 3 | . 3 2 3 Max Kills in Single Turn 2 | . 2 1 1 Gunslinging . | . . . . Exploded . | . . . . Melee . | . . . . Uniques/NPCs Destroyed . | . . . . Combat | -11 -10 -10 -8 -------- Run | Jun Mat Sub Mat Damage Taken 2960 | . 499 463 1998 Core 751 | . 108 93 550 Absorbed by Shields . | . . . . Redirected to Shielding 6 | . . . 6 Regen/Repaired (Parts) 62 | . 62 . . Core Remaining (%) 59 | 100 . 19 . Volleys Fired 93 | . 55 19 19 Largest 3 | . 2 2 3 Hottest 138 | . 40 88 138 Shots Fired 180 | . 110 37 33 Gun 176 | . 110 37 29 Cannon 1 | . . . 1 Launcher 3 | . . . 3 Special . | . . . . Kinetic 144 | . 110 18 16 Thermal 33 | . . 19 14 Explosive . | . . . . Electromagnetic 3 | . . . 3 Robot Hit Streak 15 | . 15 12 7 Robot Miss Streak 4 | . 4 3 2 Penetration Max . | . . . . Secondary Targets 1 | . . 1 . Max Gunslinging Chain 1 | . . 1 . Shots Hit Robots 130 | . 83 25 22 Core Hits 50 | . 29 8 13 Critical Kills 1 | . . . 1 Critical Parts Destroyed . | . . . . Critical Strikes 1 | . . . 1 Destroy 1 | . . . 1 Melee Attacks . | . . . . Impact . | . . . . Slashing . | . . . . Piercing . | . . . . Sneak Attacks . | . . . . Combat Hostiles . | . . . . Follow-up Attacks . | . . . . Damage Inflicted 1983 | . 947 369 667 Guns 1713 | . 947 369 397 Cannons 23 | . . . 23 Explosions 198 | . . . 198 Melee . | . . . . Ramming 49 | . . . 49 Kinetic 1376 | . 947 208 221 Thermal 360 | . . 161 199 Explosive . | . . . . Electromagnetic 198 | . . . 198 Impact . | . . . . Slashing . | . . . . Piercing . | . . . . Highest Corruption 2 | . 1 1 2 Average Corruption 1 | . 1 1 2 Corruption Purged . | . . . . Corruption Blocked . | . . . . Effects 7 | . . 6 1 Message Errors 1 | . . 1 . Matter Fused 3 | . . 2 1 Heat Flow Errors 1 | . . 1 . Energy Discharges 1 | . . 1 . Alerts 1 | . . 1 . Overload Shots . | . . . . Overflow Damage . | . . . . Projectiles . | . . . . Explosions . | . . . . Melee . | . . . . Knockbacks 1 | . . . 1 Impact . | . . . . Kinetic 1 | . . . 1 Secondary . | . . . . Self-Inflicted Damage 23 | . . . 23 Shots . | . . . . Rammed 5 | . . . 5 Targets Rammed 5 | . . . 5 Kicked . | . . . . Crushed . | . . . . Highest Temperature 206 | . 18 143 206 Average Temperature 47 | . 8 37 85 Received Heat Transfer 762 | . 279 141 342 Siege Activations . | . . . . Robots Corrupted . | . . . . Combat Hostiles . | . . . . Parts Fried . | . . . . Impact Corruptions . | . . . . Robots Melted . | . . . . Combat Hostiles . | . . . . Parts Melted 1 | . . 1 . Heat Transferred 551 | . . 261 290 Parts Sabotaged . | . . . . Parts Stolen . | . . . . Parts Stripped . | . . . . Power Chain Reactions . | . . . . Missiles Intercepted . | . . . . Alert | -11 -10 -10 -8 ------- Run | Jun Mat Sub Mat Peak Influence 416 | . 218 . 416 Initial . | . . . . Average 114 | . 99 . 179 Maximum Alert Level 2 | . 1 . 2 Low Security (%) 76 | 100 85 . 45 Level 1 22 | . 14 . 49 Level 2 1 | . . . 4 Level 3 . | . . . . Level 4 . | . . . . Level 5 . | . . . . High Security . | . . . . Max Security . | . . . . Squads Dispatched 5 | . 2 . 3 Investigation 1 | . 1 . . Extermination . | . . . . Reinforcement 3 | . 1 . 2 Assault 1 | . . . 1 Garrison . | . . . . Intercept . | . . . . Searches Triggered . | . . . . Construction Impeded . | . . . . Haulers Reinforced . | . . . . Active Scanning Responses . | . . . . Cargo Convoy Interrupts . | . . . . Stealth | -11 -10 -10 -8 --------- Run | Jun Mat Sub Mat Distress Signals 2 | . 2 . . Communications Jammed . | . . . . Distress Signals . | . . . . Times Spotted 48 | . 18 4 26 Peak Tracking Total 13 | . 5 2 13 Tactical Retreats 7 | . 3 . 4 Traps | -11 -10 -10 -8 ------- Run | Jun Mat Sub Mat Traps Triggered 3 | . 2 . 1 Indirectly 1 | . . . 1 Trap Hack Attempts . | . . . . Triggered . | . . . . Disarmed . | . . . . Reprogrammed . | . . . . Reused . | . . . . Traps Extracted . | . . . . Installed . | . . . . Triggered . | . . . . Machines | -11 -10 -10 -8 ---------- Run | Jun Mat Sub Mat Machines Disabled 3 | . . . 3 Max in Single Turn 1 | . . . 1 Garrison Access 1 | . . . 1 Machines Repaired . | . . . . Machines Sabotaged . | . . . . Overloaded Fab Kills . | . . . . Hacking | -11 -10 -10 -8 --------- Run | Jun Mat Sub Mat Machines Accessed 4 | . 4 . . Terminals 3 | . 3 . . Fabricators . | . . . . Repair Stations 1 | . 1 . . Recycling Units . | . . . . Scanalyzers . | . . . . Garrison Access . | . . . . Total Hacks 12 | . 12 . . Successful 10 | . 10 . . Failed 2 | . 2 . . Catastrophic . | . . . . Database Lockouts . | . . . . Manual 5 | . 5 . . Terminals 9 | . 9 . . Fabricators . | . . . . Repair Stations 3 | . 3 . . Recycling Units . | . . . . Scanalyzers . | . . . . Garrison Access . | . . . . Terminal Hacks 8 | . 8 . . Robot Analysis 3 | . 3 . . Locate Traps 1 | . 1 . . Hauler Manifests 1 | . 1 . . Registered Components 1 | . 1 . . Zone Layout 2 | . 2 . . Fabricator Hacks . | . . . . Repair Station Hacks 2 | . 2 . . Scan Component 1 | . 1 . . Repair 1 | . 1 . . Recycling Unit Hacks . | . . . . Scanalyzer . | . . . . Garrison Access Hacks . | . . . . Unauthorized Hacks . | . . . . Terminals . | . . . . Fabricators . | . . . . Repair Stations . | . . . . Recycling Units . | . . . . Scanalyzers . | . . . . Garrison Access . | . . . . Data Cores Recovered . | . . . . Used . | . . . . Hacking Detections 2 | . 2 . . Full Trace Events . | . . . . Feedback Events . | . . . . Feedback Blocked . | . . . . Robot Schematics Acquired . | . . . . Robots Built . | . . . . Authchips . | . . . . Time . | . . . . Total Robot Build Rating . | . . . . Part Schematics Acquired . | . . . . Parts Built . | . . . . Authchips . | . . . . Time . | . . . . Total Part Build Rating . | . . . . Parts Repaired 1 | . 1 . . Time 26 | . 26 . . Parts Recycled . | . . . . Recycled Matter . | . . . . Retrieved Matter . | . . . . Retrieved Components . | . . . . Parts Scanalyzed . | . . . . Part Schematics Acquired . | . . . . Parts Damaged . | . . . . Bothacking | -11 -10 -10 -8 ------------ Run | Jun Mat Sub Mat Used RIF Installer . | . . . . Robots Hacked . | . . . . Non-combat . | . . . . Combat . | . . . . Robot Hacks Applied . | . . . . Relay Couplers Released 2 | . . . 2 Machine Destruction 2 | . . . 2 Fabnet Peak Effective % . | . . . . Robots Rewired . | . . . . Allies Hacked . | . . . . Hacks Repelled . | . . . . Allies | -11 -10 -10 -8 -------- Run | Jun Mat Sub Mat Total Allies . | . . . . Largest Group . | . . . . Highest-Rated Group . | . . . . Highest-Rated Ally . | . . . . Total Orders . | . . . . Ally Attacks . | . . . . Total Damage . | . . . . Kills . | . . . . Allies Corrupted . | . . . . Allies Melted . | . . . . Intel | -11 -10 -10 -8 ------- Run | Jun Mat Sub Mat Robot Analysis Total 3 | . 3 . . Derelict Logs Recovered . | . . . . Drone Launches . | . . . . Drone Recoveries . | . . . . Exploration | -11 -10 -10 -8 ------------- Run | Jun Mat Sub Mat Turns Passed 1917 | 52 832 750 283 Spaces Moved 1148 | 43 441 421 243 Core 194 | 6 . . 188 Treads 735 | . 259 421 55 Legs . | . . . . Wheels 219 | 37 182 . . Hover . | . . . . Flight . | . . . . Fastest Speed 50 | 50 90 160 50 Average Speed 128 | 86 133 160 74 Slowest Speed 160 | 100 160 160 160 Overloaded Moves . | . . . . Propulsion Burnouts . | . . . . Robots Hopped . | . . . . Cave-ins Triggered . | . . . . Exploration Rate (%) 33 | 3 76 19 36 Regions Visited 3 Branch Regions 1 Pre-discovered Areas . | . . . . Known Exits Taken . | . . . . Unknown Exits Taken 3 | 1 1 1 . Scrap Searched 7 | . . 7 . Spaces Dug . | . . . . Terrain Destroyed 1 | . . . 1 Melee . | . . . . Projectile 1 | . . . 1 AOE . | . . . . Terrain Rammed . | . . . . Walls Destroyed . | . . . . Machines Disabled . | . . . . Actions | -11 -10 -10 -8 --------- Run | Jun Mat Sub Mat Total 1416 | 54 589 465 308 Wait 81 | . 63 6 12 Move 1145 | 42 440 420 243 Hop . | . . . . Pick Up 27 | 6 15 2 4 Fast Attach 19 | 6 2 . 11 Attach 14 | . 3 3 8 Detach 3 | . . 1 2 Swap 11 | . 3 7 1 Drop 18 | . 8 7 3 Fire 93 | . 55 19 19 Melee . | . . . . Ram 5 | . . . 5 Kick . | . . . . Crush . | . . . . Escape Stasis . | . . . . Rewire . | . . . . Trap . | . . . . Miscellaneous . | . . . . Route ------- -11/Junkyard -10/Materials (discovered 5 exits: [*Mat x3] / [*Min] / [*Sub]) -10/Subcaves -8/Materials History --------- Turn | Location | Event 24 | -11/Junkyard | Discovered new exit (range 15) 53 | -11/Junkyard | Entered Materials 80 | -10/Materials | Discovered new exit (range 7) 228 | -10/Materials | Discovered new exit (range 14) 291 | -10/Materials | Discovered new exit (range 7) 311 | -10/Materials | Build established: Mutant 464 | -10/Materials | Repaired Assault Rifle 770 | -10/Materials | Discovered new exit (range 5) 871 | -10/Materials | Discovered new exit (range 10) 885 | -10/Materials | Entered Subcaves 887 | -10/Subcaves | Discovered new exit (range 12) 971 | -10/Subcaves | A swath of the cavern ceiling suddenly collapsed 988 | -10/Subcaves | Shifting Twisted Machinery released Sub. Monowheel 997 | -10/Subcaves | Shifting Twisted Machinery released Spk. Treads 1072 | -10/Subcaves | Core integrity fell below 50% 1419 | -10/Subcaves | Shifting Twisted Machinery released Battle Cannon 1447 | -10/Subcaves | Core integrity fell below 20% 1616 | -10/Subcaves | Build established: Derelict-Mutant 1635 | -10/Subcaves | Entered Materials 1635 | -8/Materials | Evolved 4 slots: Propulsion x2, Utility x1, Weapon x1 1799 | -8/Materials | Released all parts (5) 1843 | -8/Materials | Lost 7 parts (3n1u3w) 1868 | -8/Materials | Core integrity fell below 50% 1905 | -8/Materials | Lost 3 parts (2n1u) 1907 | -8/Materials | Core integrity fell below 20% 1918 | -8/Materials | Destroyed by C-17 Slicer with Blade Saw Last Messages --------------- 01865_ Slammed into S-10 Pest. 01868_ Lgt. Treads destroyed. 01868_ Acquired 5 matter. 01869_ K-01 Serf collects debris. 01874_ Imp. Aluminum Leg destroyed. 01884_ Knocked back. 01886_ K-01 Serf collects debris. 01888_ System corrupted: Matter fused (-5). 01895_ Lgt. Treads severed. 01895_ Acquired Lgt. Treads. 01897_ Lgt. Treads severed. 01900_ Acquired Arm. Wheel. 01900_ Arm. Wheel severed. 01901_ Acquired Arm. Wheel. 01902_ Dropped Sml. Storage Unit. 01908_ T-07 Excavator is excavating. 01912_ U-05 Engineer lays Concrete. 01912_ T-07 Excavator is excavating. 01913_ U-05 Engineer lays Concrete. 01915_ Critical hit (Burn: +37). Map ----- +----------------------------------------------------+ | ??????????# #??# ???????# # ?????? | | ?????????## ##?# ???????## #########????? | | ???????### #?# #??????# #????? | | ???????# # %=### ######### """ #????? | | ???????# T* """ #????? | | ???????# # ##+#####?##### """ !#????? | | ???????### #?? ????????## # #????? | | ?????????### ###??? ???????# + = #????? | | ???????????# #??????""#??????# # [[! #????? | | ???????????# #???????"#??????# # [[ !#????? | | ???????????# #???????????????# #[ [[ #????? | | ???????????# #???????????????# ##########????? | | ???????????# #???????????????# #?????????????? | | ???????????# #???###?????????# #?????????????? | | ???????????# #?#| ?? ? ????# ###???????????? | | ???????????# #?# """"" #???# # #???????????? | | ???????????# #?#[ ""T"" #???# #???????????? | | ???????????# #?# ????# ###???????????? | | ???????????# #?# """ """ #???# #?????????????? | | ???????????# #?# """ """ ????# #?????????????? | | ???????????# #?# """ ""?????## ##????????????? | | ?########### ### ???????# #????????????? | | ?# ll###+########## c #????????????? | | ?# a Y k#????????????? | | + """ """ #????????????? | | ?# """"""""" @c #????????????? | | ?# """" " ############## #????????????? | | ?# ""#??????????# #????????????? | | ?# % Y"#??????????#########????????????? | | ?#% " ""#???????????????????????????????? | | ?# """ ###???????????????????????????????? | | ?# "#????????????????????????????????? | | ?#| ^ ##????????????????????????????????? | | ?# ^ ^ #?????????????????????????????????? | | ?# #?????????????????????????????????? | | ?# ! #?????????????????????????????????? | | +# " [[= * ##################????????????????? | | ! %=!* #????????????????? | | !]]= [ *#????????????????? | | =%!!=! #????????????????? | | #####+#############+##### ##????????????????? | | ???????????????# # #?????????????????? | | ???????????????#""" # ]]! #?????????????????? | | ???????????????#""" = #]]]]!!#?????????????????? | | ???????????????#""" ########?????????????????? | | ???????????????# #????????????????????????? | | ???????????????#""" #????????????????????????? | | ???????????????#""" #????????????????????????? | | ???????????????#""" #????????????????????????? | | ???????????????# #????????????????????????? | +----------------------------------------------------+ Best States ------------- Heat Dissipation 31 Energy Generation 18 Energy Capacity 250 Matter Stores 300 Matter Capacity 300 Sight Range 16 Terrain Scan Density 10 Armor Coverage 150 Core Shielding 20 Evasion (%) 50 Targeting Accuracy 5 Launcher Accuracy 20 Recoil Reduction 4 Item Schematics ----------------- None Robot Schematics ------------------ None Fabricated ------------ Nothing Alien Tech Used ----------------- None Achievements -------------- None Challenges ------------ None Game ------ Seed LayeredTractorMapper Manual? 0 Play Time 00:30:09 Cumulative 130.9 hours Start 2023.08.01 @ 14:17:03 End 2023.08.03 @ 14:39:42 Sessions 5 Manual Loads 0 Difficulty Rogue Special Mode None Game No. 95 Rogue 95 Adventurer 0 Explorer 0 Win Type - Total 3 Types 2/0/1/0/0/0/0/0/0 Lore% 43 Gallery% 71 Achievement% 52 Wizard Run 0 Options --------- ASCII 0 Keyboard 1 Movement Vi Keybinds 1 Fullscreen 1 Font 18/SmallcapsGlow Map View 76x50 Tactical HUD 1 Map Filters NONE Filters NONE Steam 0 RUN: 4cc0ba1f-3e9c-4581-8636-cdcc115d985a